bitfinex/quotes_SOLUSD_20241118
["timestamp","ask_amount","ask_price","bid_price","bid_amount"]
[1731894682273,0.1,237.51,237.49,4.6812112]
[1731894682457,0.1,237.51,237.5,6.52568668]
[1731894682665,0.1,237.51,237.49,0.4705112]
[1731894682845,6.6193613,237.5,237.49,0.4705112]
[1731894683449,30.3962453,237.5,237.49,0.4705112]
[1731894683868,50.3962453,237.5,237.49,0.4705112]
[1731894684950,30.30257068,237.5,237.49,0.4705112]
[1731894685155,0.1,237.51,237.49,0.4705112]
[1731894685156,0.1,237.51,237.49,6.99619788]
[1731894685376,0.1,237.51,237.49,21.73349788]
[1731894685683,0.1,237.51,237.5,26.52568668]
[1731894687780,0.1,237.51,237.5,20.0]
[1731894688085,0.1,237.51,237.5,26.52568668]
[1731894688384,0.1,237.51,237.5,30.20653429]
[1731894688682,0.1,237.51,237.5,10.20653429]
[1731894691004,0.1,237.51,237.49,15.2078112]
[1731894691005,0.1,237.51,237.49,0.4705112]
[1731894691295,0.1,237.51,237.49,4.6811112]
[1731894691665,0.1,237.51,237.5,10.20653429]
[1731894693292,0.1,237.51,237.5,30.45751429]
[1731894695570,0.1,237.51,237.5,30.20653429]
[1731894695791,0.1,237.51,237.5,30.45751429]
[1731894696081,0.1,237.51,237.5,30.33202429]
[1731894697395,0.1,237.51,237.5,20.0]
[1731894697565,0.1,237.51,237.5,30.20653429]
[1731894698106,0.1,237.51,237.5,10.20653429]
[1731894699067,0.1,237.51,237.49,15.2078112]
[1731894699783,0.1,237.51,237.49,10.9972112]
[1731894699988,0.1,237.51,237.49,0.4705112]
[1731894700789,34.07709291,237.5,237.49,0.4705112]
[1731894703498,34.40258291,237.5,237.49,0.4705112]
[1731894709176,0.1,237.51,237.49,0.4705112]
[1731894711703,0.09367462,237.5,237.49,0.4705112]
[1731894711910,34.07709291,237.5,237.49,0.4705112]
[1731894712298,34.20258291,237.5,237.49,0.4705112]
[1731894712496,34.07709291,237.5,237.49,0.4705112]
[1731894713058,23.87055862,237.5,237.49,0.4705112]
[1731894713640,0.1,237.51,237.49,0.4705112]
[1731894715136,23.876884,237.51,237.49,0.4705112]
[1731894716231,0.1,237.51,237.49,0.4705112]
[1731894718735,0.1,237.51,237.49,14.88764549]
[1731894719036,0.1,237.51,237.49,25.41434549]
[1731894719639,0.1,237.53,237.5,20.0]
[1731894719846,0.1,237.57,237.53,0.12549]
[1731894720134,0.1,237.59,237.56,10.20653429]
[1731894720431,0.1,237.59,237.58,10.20653429]
[1731894721523,0.1,237.57,237.56,10.20653429]
[1731894724033,0.1,237.53,237.52,10.20653429]
[1731894724248,0.1,237.51,237.5,24.94323429]
[1731894725428,0.1,237.51,237.5,14.7367]
[1731894725742,0.1,237.51,237.5,24.94323429]
[1731894727325,0.1,237.51,237.5,10.20653429]
[1731894727528,0.1,237.51,237.49,0.4705112]
[1731894728646,23.776884,237.5,237.49,0.4705112]
[1731894731559,23.87055862,237.5,237.49,0.4705112]
[1731894733541,34.30258291,237.5,237.49,0.4705112]
[1731894733743,23.776884,237.5,237.49,0.4705112]
[1731894735242,0.1,237.51,237.49,0.4705112]
[1731894735574,0.1,237.51,237.5,10.20653429]
[1731894736850,0.1,237.51,237.49,0.4705112]
[1731894738734,0.1,237.51,237.5,10.20653429]
[1731894746049,0.1,237.51,237.49,0.4705112]
[1731894748334,23.876884,237.51,237.49,0.4705112]
[1731894748549,0.09367462,237.5,237.49,0.4705112]
[1731894749639,10.30020891,237.5,237.49,0.4705112]
[1731894749848,34.30258291,237.5,237.49,0.4705112]
[1731894751561,23.87055862,237.5,237.49,0.4705112]
[1731894751747,23.776884,237.5,237.49,0.4705112]
[1731894762074,0.1,237.51,237.49,0.4705112]
[1731894766355,0.1,237.51,237.49,7.00658554]
[1731894767850,0.1,237.51,237.49,11.21718554]
[1731894768051,0.1,237.51,237.49,21.74388554]
[1731894772391,0.1,237.51,237.49,0.4705112]
[1731894775581,23.776884,237.5,237.49,0.4705112]
[1731894778092,23.776884,237.5,237.49,7.00658554]
[1731894778855,0.1,237.51,237.5,4.2105]
[1731894779269,11.5336,237.6,237.5,4.2105]
[1731894779270,0.1,237.53,237.5,14.7368]
[1731894779463,0.1,237.53,237.52,6.53607434]
[1731894779768,0.1,237.55,237.52,6.53607434]
[1731894780084,0.1,237.57,237.55,20.0]
[1731894780273,0.1,237.57,237.56,6.53607434]
[1731894780875,0.1,237.59,237.57,20.0]
[1731894781087,0.1,237.59,237.58,26.53607434]
[1731894781368,0.1,237.62,237.59,20.0]
[1731894781558,0.1,237.62,237.61,26.53607434]
[1731894781993,0.1,237.62,237.61,30.74457434]
[1731894782356,0.1,237.62,237.61,34.40320915]
[1731894782574,0.1,237.64,237.62,20.0]
[1731894782788,0.1,237.64,237.61,24.92460915]
[1731894782789,0.1,237.64,237.63,30.19470915]
[1731894783673,0.1,237.66,237.63,30.19470915]
[1731894783990,0.1,237.66,237.65,14.40250915]
[1731894784689,0.1,237.68,237.66,20.0]
[1731894784899,0.1,237.7,237.67,10.19470915]
[1731894785065,0.1,237.7,237.69,10.19470915]
[1731894786176,0.1,237.72,237.69,14.40180915]
[1731894786370,0.1,237.72,237.71,10.19470915]
[1731894787192,0.1,237.74,237.71,10.19470915]
[1731894787390,0.1,237.74,237.73,10.19470915]
[1731894787708,0.1,237.86,237.81,20.22549]
[1731894787872,0.1,237.88,237.85,10.19470915]
[1731894788271,0.1,237.86,237.85,10.19470915]
[1731894789089,0.1,237.86,237.84,10.19470915]
[1731894790074,0.1,237.84,237.83,10.5116]
[1731894791596,0.1,237.81,237.78,10.19470915]
[1731894791775,0.1,237.77,237.76,10.19470915]
[1731894793486,0.1,237.79,237.76,10.19470915]
[1731894793698,0.1,237.79,237.78,10.19470915]
[1731894794812,0.1,237.79,237.77,4.2057]
[1731894794979,0.1,237.75,237.74,14.7218]
[1731894795174,0.1,237.75,237.74,24.91650915]
[1731894796691,0.1,237.75,237.74,10.5156]
[1731894797004,0.1,237.75,237.7,4.2069]
[1731894797005,0.1,237.75,237.71,10.19470915]
[1731894797189,0.1,237.72,237.68,10.518]
[1731894797392,10.19470915,237.79,237.68,10.518]
[1731894797393,0.1,237.69,237.68,14.7252]
[1731894798508,0.1,237.69,237.68,24.91990915]
[1731894800104,14.39990915,237.8,237.68,24.91990915]
[1731894800105,0.1,237.72,237.69,20.0]
[1731894800407,0.1,237.72,237.71,10.19470915]
[1731894800781,0.1,237.74,237.71,10.19470915]
[1731894800980,0.1,237.74,237.73,10.19470915]
[1731894801277,0.1,237.78,237.74,20.0]
[1731894801492,0.1,237.81,237.78,20.0]
[1731894801701,0.1,237.81,237.8,10.19470915]
[1731894802197,0.1,237.83,237.8,10.19470915]
[1731894802408,0.1,237.83,237.82,10.19470915]
[1731894803290,6.0919,237.89,237.82,10.19470915]
[1731894803291,0.1,237.85,237.82,14.39950915]
[1731894803500,0.1,237.85,237.84,10.19470915]
[1731894804480,0.1,237.85,237.84,14.39920915]
[1731894804686,0.1,237.87,237.84,24.91040915]
[1731894804886,0.1,237.87,237.86,10.19470915]
[1731894806305,0.1,237.87,237.86,14.39880915]
[1731894810092,0.1,237.89,237.86,14.39880915]
[1731894810290,0.1,237.87,237.86,14.39880915]
[1731894810984,0.1,237.85,237.84,10.19470915]
[1731894811181,0.1,237.83,237.81,10.19470915]
[1731894812513,0.1,237.83,237.73,16.5549]
[1731894812514,0.1,237.66,237.59,21.0438]
[1731894812810,0.1,237.66,237.55,6.0528]
[1731894812811,0.1,237.64,237.62,10.19470915]
[1731894813016,0.1,237.64,237.61,10.5211]
[1731894813811,0.1,237.66,237.61,10.5211]
[1731894814029,0.1,237.66,237.61,20.71580915]
[1731894814190,0.1,237.68,237.64,20.12549]
[1731894815398,0.1,237.68,237.65,14.7274]
[1731894816102,0.1,237.72,237.68,20.12549]
[1731894816302,0.1,237.74,237.71,0.12549]
[1731894816512,0.1,237.75,237.74,20.0]
[1731894816816,0.1,237.79,237.75,0.12549]
[1731894817289,0.1,237.75,237.74,20.0]
[1731894817491,0.1,237.75,237.72,4.2064]
[1731894817718,0.1,237.75,237.72,24.2064]
[1731894818318,0.1,237.77,237.72,51.02334915]
[1731894818628,0.1,237.74,237.72,34.7229]
[1731894819489,0.1,237.74,237.72,14.7229]
[1731894819717,0.1,237.74,237.72,10.5165]
[1731894819892,0.1,237.71,237.7,4.2068]
[1731894823698,0.1,237.71,237.68,16.30044915]
[1731894823895,0.1,237.71,237.68,4.2072]
[1731894824125,0.1,237.69,237.68,4.2072]
[1731894824504,0.1,237.69,237.67,10.5187]
[1731894824811,0.1,237.69,237.67,14.7262]
[1731894827737,0.1,237.69,237.67,10.5187]
[1731894829612,6.0919,237.75,237.64,40.50834915]
[1731894829613,0.1,237.65,237.64,40.50834915]
[1731894829816,0.1,237.67,237.64,51.02844915]
[1731894830021,0.1,237.69,237.64,51.02844915]
[1731894830233,0.1,237.71,237.66,16.30044915]
[1731894830523,0.1,237.71,237.64,34.728]
[1731894830524,0.1,237.71,237.68,16.30044915]
[1731894830935,0.1,237.69,237.68,16.30044915]
[1731894831324,0.1,237.69,237.68,20.50774915]
[1731894831725,0.1,237.69,237.68,4.2073]
[1731894832123,0.1,237.67,237.66,20.50804915]
[1731894832734,0.1,237.67,237.66,4.2076]
[1731894834843,0.1,237.67,237.66,20.50804915]
[1731894836137,0.1,237.69,237.66,31.02724915]
[1731894836344,0.1,237.67,237.66,31.02724915]
[1731894837014,0.1,237.67,237.66,14.7268]
[1731894839411,20.50654915,237.75,237.66,14.7268]
[1731894839412,0.1,237.69,237.66,14.7268]
[1731894840448,0.1,237.69,237.66,24.91924236]
[1731894840622,0.1,237.67,237.66,24.91924236]
[1731894840810,0.1,237.67,237.66,14.7268]
[1731894843824,0.1,237.6,237.51,0.1]
[1731894844141,0.1,237.58,237.56,10.19244236]
[1731894844546,0.1,237.58,237.56,20.71564236]
[1731894845548,0.1,237.58,237.56,24.92504236]
[1731894847328,0.1,237.6,237.56,24.92504236]
[1731894847544,10.19244236,237.64,237.56,24.92504236]
[1731894847545,0.1,237.64,237.59,20.12549]
[1731894847720,25.25624236,237.68,237.64,20.0]
[1731894847721,0.1,237.68,237.64,20.0]
[1731894847920,0.1,237.68,237.66,10.19244236]
[1731894848120,0.1,237.7,237.66,10.19244236]
[1731894848650,0.1,237.7,237.63,0.1]
[1731894848651,0.1,237.72,237.68,10.19244236]
[1731894848947,0.1,237.75,237.71,20.12549]
[1731894849123,0.1,237.73,237.71,20.0]
[1731894849545,0.1,237.73,237.71,34.7236]
[1731894850925,0.1,237.73,237.71,14.7236]
[1731894852727,0.1,237.7,237.62,0.1]
[1731894852922,0.1,237.7,237.6,0.12549]
[1731894852923,0.1,237.67,237.65,10.19244236]
[1731894854153,0.1,237.67,237.66,4.2076]
[1731894856327,0.1,237.69,237.66,14.7268]
[1731894856643,0.1,237.69,237.67,10.19244236]
[1731894856958,0.1,237.75,237.68,20.12549]
[1731894857134,0.1,237.75,237.72,10.19244236]
[1731894857325,0.1,237.73,237.72,10.19244236]
[1731894857521,0.1,237.75,237.7,10.19244236]
[1731894857724,0.1,237.73,237.7,10.19244236]
[1731894858134,0.1,237.75,237.71,14.7238]
[1731894858559,0.1,237.77,237.72,10.19244236]
[1731894858729,0.1,237.77,237.74,10.19244236]
[1731894858932,0.1,237.79,237.74,10.19244236]
[1731894859552,0.1,237.81,237.76,10.19244236]
[1731894860265,0.1,237.79,237.78,14.39794236]
[1731894860845,0.1,237.81,237.78,14.39794236]
[1731894861157,0.1,237.81,237.78,24.91184236]
[1731894861544,0.1,237.84,237.78,14.7194]
[1731894861745,0.1,237.82,237.8,10.19244236]
[1731894861934,6.1623,237.85,237.8,10.19244236]
[1731894862137,0.1,237.85,237.81,14.7175]
[1731894864655,0.1,237.82,237.81,14.7175]
[1731894865246,0.1,237.85,237.81,14.7175]
[1731894865456,10.19244236,237.88,237.81,14.7175]
[1731894865457,0.1,237.83,237.81,14.7175]
[1731894866046,0.1,237.87,237.82,10.19244236]
[1731894866244,0.1,237.91,237.86,10.19244236]
[1731894866453,0.1,237.91,237.89,14.7126]
[1731894867466,0.1,237.91,237.89,10.509]
[1731894871662,0.1,237.91,237.89,14.7126]
[1731894872763,0.1,237.88,237.87,4.2039]
[1731894873685,0.1,237.88,237.84,10.511]
[1731894873978,0.1,237.88,237.84,14.7155]
[1731894874167,0.1,237.86,237.84,14.7155]
[1731894875978,0.1,237.86,237.84,10.511]
[1731894876975,0.1,237.86,237.83,10.19244236]
[1731894877176,0.1,237.84,237.81,10.19244236]
[1731894877860,0.1,237.82,237.77,35.7478]
[1731894878180,0.1,237.82,237.78,20.12549]
[1731894878677,0.1,237.82,237.78,20.0]
[1731894879210,0.1,237.85,237.81,10.19244236]
[1731894880186,0.1,237.83,237.81,10.5125]
[1731894882285,0.1,237.85,237.81,10.5125]
[1731894882455,0.1,237.85,237.81,20.70494236]
[1731894882660,0.1,237.87,237.81,20.70494236]
[1731894883174,0.1,237.82,237.81,20.70494236]
[1731894883482,0.1,237.84,237.81,20.70494236]
[1731894884962,0.1,237.84,237.81,24.90994236]
[1731894885860,0.1,237.86,237.82,20.0]
[1731894886061,0.1,237.88,237.83,10.19244236]
[1731894886285,0.1,237.88,237.85,10.19244236]
[1731894886457,0.1,237.9,237.86,20.0]
[1731894886974,0.1,237.9,237.87,10.19244236]
[1731894887173,0.1,237.9,237.88,4.2038]
[1731894887762,0.1,237.9,237.88,14.7133]
[1731894887964,0.1,237.94,237.89,30.19244236]
[1731894888176,0.1,237.96,237.91,10.19244236]
[1731894889077,0.1,237.96,237.89,20.0]
[1731894889078,0.1,237.96,237.93,10.19244236]
[1731894889391,0.1,237.96,237.94,4.2027]
[1731894889687,0.1,237.96,237.94,14.7095]
[1731894890179,0.1,237.98,237.94,14.7095]
[1731894890859,0.1,238.01,237.95,10.19244236]
[1731894891061,6.5829,238.03,237.98,20.0]
[1731894891274,0.1,237.99,237.98,10.5046]
[1731894891872,0.1,238.01,237.98,10.5046]
[1731894892078,0.1,237.99,237.98,10.5046]
[1731894893480,0.1,238.01,237.98,10.5046]
[1731894894172,10.19244236,238.06,237.98,10.5046]
[1731894894173,0.1,238.03,237.98,10.5046]
[1731894894688,0.1,238.05,238.02,10.19244236]
[1731894894870,0.1,238.05,238.0,0.12549]
[1731894894871,0.1,238.07,238.0,0.12549]
[1731894895080,0.1,238.09,238.04,10.19244236]
[1731894895466,0.1,238.07,238.04,10.19244236]
[1731894895676,0.1,238.09,238.05,4.2007]
[1731894896393,0.1,238.09,238.06,0.12549]
[1731894896568,0.1,238.06,238.05,14.7026]
[1731894897004,0.1,238.04,238.01,0.12549]
[1731894897291,0.1,238.04,238.02,4.2012]
[1731894899399,0.1,238.02,238.01,10.5037]
[1731894900496,0.1,238.04,237.99,10.19244236]
[1731894900797,0.1,238.04,237.95,20.34465462]
[1731894901095,0.1,238.02,237.99,20.12549]
[1731894901392,0.1,238.04,237.99,20.12549]
[1731894901583,0.1,238.04,238.0,4.2016]
[1731894902400,0.1,238.04,238.0,14.39404236]
[1731894902584,0.1,238.08,238.03,20.25098]
[1731894902908,0.1,238.08,238.05,10.19244236]
[1731894903066,0.1,238.08,238.03,0.25098]
[1731894903274,0.1,238.08,238.05,10.19244236]
[1731894903586,0.1,238.08,238.06,4.2006]
[1731894904493,0.1,238.14,238.08,20.12549]
[1731894904685,6.5737,238.16,238.09,0.12549]
[1731894904883,0.1,238.14,238.12,10.19244236]
[1731894905200,0.1,238.16,238.12,10.19244236]
[1731894905900,22.9609,238.21,238.14,10.31793236]
[1731894905901,0.1,238.18,238.14,10.31793236]
[1731894906092,0.1,238.21,238.19,0.12549]
[1731894906409,0.1,238.23,238.2,10.19244236]
[1731894906577,0.1,238.23,238.19,0.12549]
[1731894906578,0.1,238.25,238.22,10.19244236]
[1731894907113,0.1,238.25,238.19,0.12549]
[1731894907114,0.1,238.25,238.21,0.12549]
[1731894907474,0.1,238.25,238.22,10.19244236]
[1731894907674,0.1,238.21,238.2,10.19244236]
[1731894907905,0.1,238.21,238.19,10.4953]
[1731894908399,0.1,238.16,238.13,14.6974]
[1731894909679,0.1,238.16,238.13,10.4981]
[1731894910515,0.1,238.12,238.1,4.1999]
[1731894910794,0.1,238.1,238.08,14.7007]
[1731894911787,0.1,238.1,238.08,10.5006]
[1731894912692,0.1,238.17,238.09,0.34465462]
[1731894912895,0.1,238.19,238.13,0.12549]
[1731894913217,0.1,238.17,238.13,20.12549]
[1731894913500,0.1,238.19,238.13,20.12549]
[1731894913797,0.1,238.17,238.14,4.1992]
[1731894914208,0.1,238.19,238.14,14.39164236]
[1731894914705,0.1,238.21,238.14,14.39164236]
[1731894914907,0.1,238.24,238.17,20.12549]
[1731894915096,0.1,238.28,238.23,20.12549]
[1731894915283,0.1,238.28,238.25,0.12549]
[1731894915484,0.1,238.28,238.26,10.19244236]
[1731894915791,0.1,238.28,238.25,0.12549]
[1731894916101,0.1,238.3,238.26,4.197]
[1731894916489,0.1,238.27,238.26,4.197]
[1731894916690,0.1,238.27,238.26,14.38944236]
[1731894917094,0.1,238.27,238.24,24.88304236]
[1731894917299,0.1,238.25,238.22,4.1977]
[1731894917486,0.1,238.21,238.19,10.4957]
[1731894918084,0.1,238.21,238.16,14.39114236]
[1731894918285,0.1,238.18,238.16,14.39114236]
[1731894918702,0.1,238.16,238.14,24.88934236]
[1731894918916,0.1,238.16,238.14,20.69024236]
[1731894919086,0.1,238.16,238.14,10.4978]
[1731894920285,0.1,238.23,238.16,0.25098]
[1731894920487,0.1,238.25,238.21,16.23955299]
[1731894921037,0.1,238.25,238.17,0.09367462]
[1731894921038,0.1,238.25,238.23,16.23955299]
[1731894921183,0.1,238.25,238.24,4.1974]
[1731894922495,16.71006419,238.33,238.24,4.1974]
[1731894922496,0.1,238.28,238.24,14.691]
[1731894922816,0.1,238.3,238.25,16.23955299]
[1731894923026,0.1,238.28,238.25,16.23955299]
[1731894923313,0.1,238.3,238.26,4.197]
[1731894923915,0.1,238.27,238.26,4.197]
[1731894924082,0.1,238.25,238.21,16.23955299]
[1731894924291,0.1,238.25,238.21,20.43735299]
[1731894924505,0.1,238.31,238.24,16.23955299]
[1731894924689,0.4705112,238.33,238.21,4.1978]
[1731894924690,0.1,238.29,238.26,16.23955299]
[1731894925424,0.1,238.29,238.26,20.43645299]
[1731894925713,0.1,238.27,238.26,20.43645299]
[1731894926721,0.1,238.27,238.24,16.23955299]
[1731894927009,0.1,238.3,238.25,0.25098]
[1731894927219,0.1,238.28,238.24,16.23955299]
[1731894927509,0.1,238.25,238.21,10.4949]
[1731894927890,0.1,238.25,238.04,68.0013564]
[1731894927891,0.1,238.2,238.17,4.1985]
[1731894928401,0.1,238.18,238.16,10.4968]
[1731894929396,0.1,238.2,238.16,26.73635299]
[1731894929916,0.1,238.22,238.16,26.73635299]
[1731894930116,0.1,238.22,238.2,16.23955299]
[1731894930323,0.1,238.22,238.18,16.23955299]
[1731894931314,20.43645299,238.27,238.18,16.23955299]
[1731894931315,0.1,238.19,238.18,16.23955299]
[1731894931504,0.1,238.19,238.18,20.43805299]
[1731894931698,0.1,238.19,238.18,4.1985]
[1731894931905,0.1,238.17,238.16,10.4968]
[1731894932097,0.1,238.17,238.16,14.6956]
[1731894932621,0.1,238.19,238.16,14.6956]
[1731894932912,0.1,238.17,238.16,10.4968]
[1731894933100,0.1,238.19,238.16,14.6956]
[1731894933506,0.1,238.22,238.16,30.93515299]
[1731894934225,0.1,238.24,238.18,16.23955299]
[1731894935099,0.1,238.27,238.2,16.23955299]
[1731894935299,0.1,238.27,238.22,16.23955299]
[1731894935503,0.1,238.29,238.22,16.23955299]
[1731894936016,0.1,238.29,238.23,14.6916]
[1731894937298,0.1,238.29,238.24,16.23955299]
[1731894937704,0.1,238.27,238.24,16.23955299]
[1731894937905,0.1,238.25,238.23,10.494]
[1731894938312,0.1,238.27,238.23,10.494]
[1731894939510,0.1,238.29,238.23,14.6916]
[1731894939711,0.1,238.31,238.26,16.23955299]
[1731894940221,0.1,238.31,238.25,10.14266585]
[1731894940599,0.1,238.31,238.26,14.6897]
[1731894942517,0.1,238.28,238.26,14.6897]
[1731894943826,0.1,238.26,238.22,20.0]
[1731894944023,0.1,238.24,238.21,10.14266585]
[1731894944324,0.1,238.27,238.22,0.12549]
[1731894944835,0.1,238.31,238.25,0.09367462]
[1731894944998,0.4705112,238.33,238.28,10.14266585]
[1731894945325,0.4705112,238.33,238.32,10.14266585]
[1731894946134,0.4705112,238.33,238.32,14.33866585]
[1731894951605,0.4705112,238.33,238.32,14.46415585]
[1731894952723,0.4705112,238.33,238.32,34.58964585]
[1731894953024,0.5705112,238.33,238.32,4.196]
[1731894954214,0.5705112,238.33,238.31,10.4904]
[1731894957628,0.1,238.27,238.25,10.14266585]
[1731894957930,0.1,238.27,238.21,35.6826]
[1731894957931,0.1,238.27,238.24,20.0]
[1731894958127,0.1,238.27,238.23,10.14266585]
[1731894959825,0.1,238.27,238.24,14.691]
[1731894960021,0.1,238.25,238.24,14.691]
[1731894962037,0.1,238.25,238.24,10.4936]
[1731894964132,0.1,238.21,238.19,10.4957]
[1731894965223,0.1,238.21,238.19,14.694]
[1731894967128,0.1,238.25,238.2,20.0]
[1731894967326,0.1,238.27,238.22,10.14266585]
[1731894967923,0.1,238.24,238.22,10.14266585]
[1731894968279,0.1,238.24,238.23,4.1976]
[1731894968626,0.1,238.24,238.21,14.6927]
[1731894969238,0.1,238.22,238.21,10.4949]
[1731894969636,0.1,238.19,238.18,4.1983]
[1731894971042,0.1,238.14,238.13,4.1992]
[1731894971243,0.1,238.1,238.07,20.64356585]
[1731894971440,0.1,238.1,238.07,10.5009]
[1731894971633,0.1,238.08,238.07,10.5009]
[1731894972747,10.14266585,238.11,238.05,4.2007]
[1731894972748,0.1,238.06,238.05,4.2007]
[1731894973040,0.1,238.03,238.02,14.7044]
[1731894973271,0.1,238.06,238.02,14.7044]
[1731894973549,0.1,238.04,238.03,10.14266585]
[1731894974126,0.1,238.06,238.03,10.14266585]
[1731894974327,0.1,238.06,238.04,4.2009]
[1731894975742,0.1,238.06,238.04,14.7033]
[1731894976451,0.1,238.06,238.04,10.5024]
[1731894978350,22.1792,238.08,237.99,24.84906585]
[1731894978351,0.1,238.0,237.99,24.84906585]
[1731894978530,0.1,238.0,237.99,14.7064]
[1731894979347,0.1,238.0,237.99,10.5046]
[1731894980153,0.1,238.0,237.93,20.28533185]
[1731894980331,0.1,237.97,237.94,35.7227]
[1731894981262,0.1,237.97,237.94,14.7095]
[1731894982260,0.1,237.95,237.94,14.7095]
[1731894982557,0.1,237.9,237.88,20.651766]
[1731894983766,0.1,237.9,237.88,24.855566]
[1731894983937,0.1,237.9,237.88,14.7129]
[1731894984736,0.1,237.9,237.88,10.5091]
[1731894986138,0.1,237.93,237.89,10.14266585]
[1731894986345,0.1,237.98,237.91,10.14266585]
[1731894986658,0.1,237.96,237.95,10.14266585]
[1731894986852,0.1,237.96,237.93,10.14266585]
[1731894987768,0.1,237.96,237.94,14.7095]
[1731894988258,0.1,237.96,237.89,0.34465462]
[1731894988259,0.1,237.96,237.92,4.203]
[1731894988461,0.1,237.93,237.92,4.203]
[1731894989062,0.1,237.93,237.89,10.5088]
[1731894989368,0.1,237.93,237.9,4.2033]
[1731894989748,0.1,237.93,237.89,10.5088]
[1731894989971,0.1,237.93,237.9,10.14266585]
[1731894990267,0.1,237.95,237.9,10.14266585]
[1731894990466,0.1,237.92,237.89,10.5088]
[1731894990768,0.1,237.94,237.89,20.65146585]
[1731894990968,0.1,237.9,237.89,20.65146585]
[1731894991869,0.1,237.9,237.89,24.85506585]
[1731894992771,0.1,237.9,237.89,14.7124]
[1731894993154,0.1,237.9,237.89,10.5088]
[1731894993349,0.1,237.88,237.87,4.2039]
[1731894994290,4.3024,237.96,237.87,4.2039]
[1731894994291,0.1,237.9,237.87,4.2039]
[1731894994469,0.1,237.9,237.87,14.34656585]
[1731894994850,0.1,237.88,237.87,14.34656585]
[1731894995848,5.6371,237.94,237.87,14.34656585]
[1731894996675,33.91954985,237.93,237.86,10.5103]
[1731894997260,23.776884,237.93,237.86,10.5103]
[1731894997650,33.91954985,237.93,237.86,10.5103]
[1731894998445,26.15866585,237.91,237.83,14.34726585]
[1731894998652,10.14266585,237.87,237.81,4.2049]
[1731894999077,10.14266585,237.85,237.8,10.5126]
[1731894999772,23.776884,237.84,237.8,10.5126]
[1731895000072,23.776884,237.84,237.76,14.7207]
[1731895000073,23.776884,237.82,237.76,14.7207]
[1731895000275,10.14266585,237.81,237.76,14.7207]
[1731895000452,10.14266585,237.81,237.76,10.5148]
[1731895000954,10.14266585,237.79,237.74,4.2061]
[1731895001156,23.776884,237.78,237.71,24.86606585]
[1731895001376,10.14266585,237.77,237.71,14.7234]
[1731895002489,10.14266585,237.75,237.71,10.5168]
[1731895002868,10.14266585,237.75,237.63,0.72857314]
[1731895002869,23.776884,237.74,237.68,4.2073]
[1731895003468,16.17976585,237.73,237.68,4.2073]
[1731895003782,10.14266585,237.71,237.66,10.519]
[1731895004083,10.14266585,237.71,237.66,14.7266]
[1731895004284,23.776884,237.72,237.63,20.66166585]
[1731895004285,23.776884,237.68,237.63,25.2476]
[1731895004496,10.14266585,237.69,237.63,14.7286]
[1731895005161,10.14266585,237.71,237.63,24.87126585]
[1731895005362,16.17976585,237.73,237.65,10.14266585]
[1731895006967,16.17976585,237.73,237.66,14.7268]
[1731895007282,6.0371,237.73,237.66,14.7268]
[1731895008166,16.17976585,237.73,237.66,14.7268]